bitfinex/quotes_ETHUSD_20240714
["timestamp","ask_amount","ask_price","bid_price","bid_amount"]
[1720961752572,1.26745647,3199.3,3199.2,0.62505935]
[1720961754262,6.24359647,3199.3,3199.2,0.62505935]
[1720961754484,7.34711144,3199.3,3199.2,0.62505935]
[1720961755380,4.84657144,3199.3,3199.2,0.62505935]
[1720961755565,3.76369675,3199.3,3199.2,0.62505935]
[1720961755883,3.74315239,3199.3,3199.2,0.62505935]
[1720961756187,6.03428897,3199.3,3199.2,0.62505935]
[1720961756355,6.03410269,3199.3,3199.2,0.62505935]
[1720961757516,1.26755239,3199.3,3199.2,0.62505935]
[1720961757803,1.26755239,3199.3,3199.2,3.12567935]
[1720961757963,3.04668273,3199.3,3199.2,3.12567935]
[1720961758283,1.26755239,3199.3,3199.2,3.12567935]
[1720961758468,3.23126451,3199.3,3199.2,3.12567935]
[1720961758896,0.18458178,3199.3,3199.2,3.12567935]
[1720961759079,1.26742887,3199.3,3199.2,3.12567935]
[1720961759409,0.18458178,3199.3,3199.2,3.12567935]
[1720961759614,3.04717638,3199.3,3199.2,3.12567935]
[1720961759764,3.23175816,3199.3,3199.2,3.12567935]
[1720961760472,3.23175816,3199.3,3199.2,5.62629935]
[1720961761002,3.23175816,3199.3,3199.2,6.19316287]
[1720961761207,2.72000687,3199.3,3199.2,11.59116287]
[1720961761407,0.32663347,3199.9,3199.7,2.50022]
[1720961761606,3.23166684,3199.8,3199.7,2.50022]
[1720961762376,3.23113412,3199.8,3199.7,2.50022]
[1720961764618,3.23111309,3199.8,3199.7,2.50022]
[1720961766233,3.23111309,3199.8,3199.6,3.12536935]
[1720961766234,3.74270204,3199.8,3199.6,0.62505935]
[1720961766518,3.23103783,3199.7,3199.6,0.62505935]
[1720961767238,3.23103783,3199.7,3199.6,3.12536935]
[1720961767398,1.26710204,3199.7,3199.6,3.12536935]
[1720961767802,3.2308312,3199.7,3199.6,3.12536935]
[1720961767997,3.23083193,3199.7,3199.6,3.12536935]
[1720961768891,5.63763193,3199.7,3199.6,0.62505935]
[1720961769090,6.12821249,3199.7,3199.6,0.62505935]
[1720961769393,4.16448779,3199.7,3199.6,0.62505935]
[1720961769813,6.12839359,3199.7,3199.6,0.62505935]
[1720961770010,6.12839359,3199.7,3199.6,3.12536935]
[1720961770011,3.72159359,3199.7,3199.6,3.12536935]
[1720961770429,1.75768779,3199.7,3199.6,3.12536935]
[1720961770629,0.67499961,3199.7,3199.6,3.12536935]
[1720961770831,1.75766836,3199.7,3199.6,3.12536935]
[1720961771196,0.67499961,3199.7,3199.6,3.12536935]
[1720961771799,2.45463266,3199.7,3199.6,0.62505935]
[1720961772030,4.5508691,3199.7,3199.6,0.62505935]
[1720961772944,4.16447495,3199.7,3199.6,0.62505935]
[1720961773959,6.12878128,3199.7,3199.6,0.62505935]
[1720961774148,4.16447495,3199.7,3199.6,0.62505935]
[1720961774332,6.12887442,3199.7,3199.6,0.62505935]
[1720961774527,4.16452899,3199.7,3199.6,0.62505935]
[1720961774854,6.12907605,3199.7,3199.6,0.62505935]
[1720961775172,4.16452899,3199.7,3199.6,0.62505935]
[1720961775463,4.84278465,3199.7,3199.6,0.62505935]
[1720961777632,3.76005527,3199.7,3199.6,0.62505935]
[1720961777970,4.84281552,3199.7,3199.6,0.62505935]
[1720961780445,1.75775986,3199.7,3199.6,0.62505935]
[1720961780647,3.72279692,3199.7,3199.6,0.62505935]
[1720961781042,0.67499961,3199.7,3199.6,0.62505935]
[1720961781356,2.4549283,3199.7,3199.6,0.62505935]
[1720961781668,3.72205063,3199.7,3199.6,3.12536935]
[1720961781980,3.72205063,3199.7,3199.6,5.47746935]
[1720961782276,1.75770289,3199.7,3199.6,5.47746935]
[1720961782653,1.57328384,3199.7,3199.6,5.47746935]
[1720961783068,1.57328384,3199.7,3199.6,8.77555929]
[1720961783380,0.49058056,3199.7,3199.6,8.77555929]
[1720961784494,0.49058056,3199.7,3199.6,5.62567935]
[1720961784644,3.20835564,3199.7,3199.6,5.62567935]
[1720961784861,1.5731534,3199.7,3199.6,5.62567935]
[1720961785156,0.49058056,3199.7,3199.6,5.62567935]
[1720961785355,1.57315144,3199.7,3199.6,5.62567935]
[1720961787339,3.20813701,3199.7,3199.6,5.62567935]
[1720961787616,0.49058056,3199.7,3199.6,5.62567935]
[1720961787820,1.57317859,3199.7,3199.6,6.10328205]
[1720961787982,0.49058056,3199.7,3199.6,6.10328205]
[1720961788188,1.57317859,3199.7,3199.6,6.10328205]
[1720961788389,2.88124108,3199.7,3199.6,6.10328205]
[1720961790783,1.79864305,3199.7,3199.6,6.10328205]
[1720961790988,2.88118278,3199.7,3199.6,6.10328205]
[1720961792021,1.79864305,3199.7,3199.6,6.10328205]
[1720961792224,2.88118102,3199.7,3199.6,6.10328205]
[1720961793542,1.57311853,3199.7,3199.6,5.62567935]
[1720961793757,2.88052213,3199.7,3199.6,5.62567935]
[1720961794241,1.79798416,3199.7,3199.6,5.62567935]
[1720961794436,2.88048074,3199.7,3199.6,5.62567935]
[1720961794759,1.79790428,3199.7,3199.6,5.62567935]
[1720961794959,2.8804809,3199.7,3199.6,5.62567935]
[1720961795613,3.85775718,3199.7,3199.6,3.12536935]
[1720961795813,6.04107939,3199.7,3199.6,3.12536935]
[1720961796014,5.49189035,3199.7,3199.6,3.12536935]
[1720961797565,2.77518056,3199.7,3199.6,3.12536935]
[1720961797765,5.49253367,3199.7,3199.6,3.12536935]
[1720961798422,3.20793367,3199.7,3199.6,3.12536935]
[1720961800367,1.57322884,3199.7,3199.6,3.12536935]
[1720961800725,3.20862902,3199.7,3199.6,3.12536935]
[1720961800923,2.12598074,3199.7,3199.6,3.12536935]
[1720961801162,3.2086378,3199.7,3199.6,3.12536935]
[1720961801362,1.57323762,3199.7,3199.6,3.12536935]
[1720961804284,0.49058056,3199.7,3199.6,3.12536935]
[1720961804442,1.5732224,3199.7,3199.6,3.12536935]
[1720961804783,0.49058056,3199.7,3199.6,3.12536935]
[1720961804989,1.57321678,3199.7,3199.6,3.12536935]
[1720961805848,1.57321678,3199.7,3199.6,5.62567935]
[1720961806101,1.57321678,3199.7,3199.6,3.12536935]
[1720961807460,1.57319097,3199.7,3199.6,5.62567935]
[1720961807666,1.57319097,3199.7,3199.6,6.43060729]
[1720961808299,1.57319097,3199.7,3199.6,5.62567935]
[1720961809798,3.20992147,3199.7,3199.6,5.62567935]
[1720961810802,0.49058056,3199.7,3199.6,5.62567935]
[1720961811016,3.20990562,3199.7,3199.6,5.62567935]
[1720961814281,3.20986158,3199.7,3199.6,5.62567935]
[1720961814599,3.20986158,3199.7,3199.6,6.18824729]
[1720961815072,1.57312823,3199.7,3199.6,6.18824729]
[1720961815408,3.21007425,3199.7,3199.6,5.62567935]
[1720961816917,1.57316314,3199.7,3199.6,5.62567935]
[1720961817082,3.21008277,3199.7,3199.6,5.62567935]
[1720961817266,4.06066314,3199.7,3199.6,0.62505935]
[1720961817480,2.97808056,3199.7,3199.6,0.62505935]
[1720961817680,4.24510524,3199.7,3199.6,0.62505935]
[1720961817983,4.57179504,3199.7,3199.6,0.62505935]
[1720961818805,4.38741683,3199.7,3199.6,0.62505935]
[1720961819115,4.57179895,3199.7,3199.6,0.62505935]
[1720961820834,4.57180919,3199.7,3199.6,0.62505935]
[1720961821292,4.38742707,3199.7,3199.6,3.12536935]
[1720961821502,4.57183328,3199.7,3199.6,3.12536935]
[1720961821694,4.38742707,3199.7,3199.6,3.12536935]
[1720961822915,1.89992707,3199.7,3199.6,5.62567935]
[1720961823101,1.89992707,3199.7,3199.6,6.48824729]
[1720961823311,1.89982656,3199.7,3199.6,6.48824729]
[1720961823510,1.57313676,3199.7,3199.6,6.48824729]
[1720961823804,1.57313676,3199.7,3199.6,6.46324729]
[1720961826503,0.49058056,3199.7,3199.6,6.52574971]
[1720961826801,0.49058056,3199.7,3199.6,14.39385539]
[1720961826802,1.80139419,3199.7,3199.6,14.39385539]
[1720961827004,1.4073392,3199.7,3199.6,19.26166729]
[1720961827180,0.6552065,3199.7,3199.6,19.26166729]
[1720961827387,0.98314006,3199.9,3199.7,1.88]
[1720961827621,0.98314006,3199.9,3199.8,9.22652373]
[1720961828139,0.98314006,3199.9,3199.8,12.22652373]
[1720961828622,1.4735932,3200.0,3199.9,7.50021]
[1720961828844,1.4735932,3200.0,3199.9,12.46083837]
[1720961829142,0.49045314,3200.0,3199.9,12.46083837]
[1720961829507,1.47279753,3200.0,3199.9,12.46083837]
[1720961830515,1.14526369,3200.0,3199.9,19.20870837]
[1720961831074,0.49045314,3200.0,3199.9,19.20870837]
[1720961831556,0.49045314,3200.0,3199.9,19.80876772]
[1720961832720,0.14953457,3200.2,3200.1,9.37976]
[1720961832920,0.98220155,3200.4,3200.3,9.37928]
[1720961833148,1.47259348,3200.5,3200.4,6.87936]
[1720961833651,1.47259348,3200.5,3200.4,9.87936]
[1720961833810,0.49039193,3200.5,3200.4,9.87936]
[1720961834014,0.49039193,3200.5,3200.4,13.616952]
[1720961836346,0.49039193,3200.5,3200.4,12.37904]
[1720961836563,0.49039193,3200.5,3200.4,5.49968]
[1720961836713,0.49039193,3200.5,3200.4,2.49968]
[1720961837046,1.79999399,3200.5,3200.4,2.49968]
[1720961837223,0.49039193,3200.5,3200.4,2.49968]
[1720961837427,1.79765372,3200.5,3200.4,2.49968]
[1720961837923,0.49039193,3200.5,3200.4,2.49968]
[1720961838709,1.79765372,3200.5,3200.4,2.49968]
[1720961839151,0.49039193,3200.5,3200.4,2.49968]
[1720961839354,1.79765372,3200.5,3200.4,2.49968]
[1720961839521,0.49039193,3200.5,3200.4,2.49968]
[1720961839724,1.79765372,3200.5,3200.4,2.49968]
[1720961840921,1.79765372,3200.5,3200.3,5.49976]
[1720961841148,1.79765372,3200.5,3200.0,2.49994]
[1720961841149,1.30726179,3200.4,3200.0,2.49994]
[1720961841358,2.70802262,3200.5,3199.9,17.45300001]
[1720961841359,2.4076,3200.1,3199.9,17.45300001]
[1720961841566,1.30683762,3200.0,3199.9,17.45300001]
[1720961841738,1.08259585,3200.0,3199.9,17.45300001]
[1720961842768,1.08264952,3200.0,3199.9,17.45300001]
[1720961842949,2.71555983,3200.0,3199.9,17.45300001]
[1720961843263,2.71547287,3200.0,3199.9,17.45300001]
[1720961844029,4.04046352,3200.1,3199.9,19.95301001]
[1720961844936,4.04046352,3200.1,3199.8,3.10019935]
[1720961845163,1.30622114,3199.9,3199.8,3.10019935]
[1720961846962,1.30622114,3199.9,3199.8,0.60005935]
[1720961847279,1.63248043,3200.0,3199.8,0.60005935]
[1720961848772,1.08262034,3199.9,3199.8,0.60005935]
[1720961849275,1.08261295,3199.9,3199.8,0.60005935]
[1720961849972,1.63233698,3200.0,3199.8,0.60005935]
[1720961850170,1.08260278,3199.9,3199.8,0.60005935]
[1720961851779,1.08262201,3199.9,3199.8,0.60005935]
[1720961852379,2.4076,3200.1,3199.8,0.60005935]
[1720961852557,2.71484533,3200.0,3199.8,0.60005935]
[1720961852760,1.08261425,3199.9,3199.8,0.60005935]
[1720961853059,2.71484533,3199.9,3199.8,0.60005935]
[1720961853453,1.08261425,3199.9,3199.8,0.60005935]
[1720961853774,1.63223108,3200.0,3199.8,0.60005935]
[1720961853981,1.08260245,3199.9,3199.8,0.60005935]
[1720961854540,2.71483353,3199.9,3199.8,0.60005935]
[1720961854746,1.08260245,3199.9,3199.8,0.60005935]
[1720961855478,1.63223108,3200.0,3199.8,0.60005935]
[1720961855680,2.4076,3200.1,3199.8,3.10016935]
[1720961855871,1.30586648,3199.9,3199.8,3.10016935]
[1720961861188,1.63290516,3200.0,3199.8,3.10016935]
[1720961861765,1.08256419,3199.9,3199.8,3.10016935]
[1720961862064,2.4076,3200.1,3199.8,3.10016935]
[1720961862259,1.08256908,3199.9,3199.8,3.10016935]
[1720961863246,2.71570724,3199.9,3199.8,3.10016935]
[1720961863560,2.71570724,3199.9,3199.8,0.60005935]
[1720961865171,1.08256908,3199.9,3199.8,0.60005935]
[1720961865378,2.4076,3200.1,3199.8,0.60005935]
[1720961865586,1.51698797,3200.0,3199.8,0.60005935]
[1720961865758,1.08267378,3199.9,3199.8,0.60005935]
[1720961865953,6.04854378,3199.9,3199.8,0.60005935]
[1720961866313,11.20958484,3199.9,3199.8,0.60005935]
[1720961866631,14.57939593,3199.9,3199.8,0.60005935]
[1720961866833,16.06467818,3199.9,3199.8,0.60005935]
[1720961867134,16.06467818,3199.9,3199.8,0.42277125]
[1720961867309,13.56460818,3199.9,3199.8,0.42277125]
[1720961867681,10.86360566,3199.9,3199.8,0.42277125]
[1720961868310,10.19479709,3199.9,3199.8,0.42277125]
[1720961868516,9.11212331,3199.9,3199.8,0.42277125]
[1720961868808,10.19503013,3199.9,3199.8,0.42277125]
[1720961869003,10.19502467,3199.9,3199.8,0.42277125]
[1720961870512,10.85853753,3199.9,3199.8,0.42277125]
[1720961870711,13.35860753,3199.9,3199.8,0.42277125]
[1720961870905,16.05884232,3199.9,3199.8,0.42277125]
[1720961871099,13.35860753,3199.9,3199.8,0.42277125]
[1720961871334,12.69509467,3199.9,3199.8,0.42277125]
[1720961871617,12.27542001,3199.9,3199.8,0.42277125]
[1720961871804,13.35842939,3199.9,3199.8,0.42277125]
[1720961872184,12.69520269,3199.9,3199.8,0.42277125]
[1720961873907,12.69520269,3199.9,3199.8,0.29943826]
[1720961876226,14.97721993,3199.9,3199.8,0.29943826]
[1720961877926,12.47714993,3199.9,3199.8,0.29943826]
[1720961878128,9.11212331,3199.9,3199.8,0.29943826]
[1720961878316,10.19505882,3199.9,3199.8,0.29943826]
[1720961880239,8.70977657,3199.9,3199.8,0.29943826]
[1720961880391,5.70138724,3199.9,3199.8,0.29943826]
[1720961880889,4.61842904,3199.9,3199.8,0.29943826]
[1720961881102,5.70122336,3199.9,3199.8,0.29943826]
[1720961881525,3.58285697,3199.9,3199.8,0.29943826]
[1720961882151,3.73287987,3199.9,3199.8,0.29943826]
[1720961882647,5.69091312,3199.9,3199.8,0.29943826]
[1720961882944,4.55977992,3199.9,3199.8,0.29943826]
[1720961883109,7.05984992,3199.9,3199.8,0.29943826]
[1720961883805,7.05991284,3199.9,3199.8,0.29943826]
[1720961884406,7.05991273,3199.9,3199.8,0.29943826]
[1720961886954,5.97706295,3199.9,3199.8,0.29943826]
[1720961887124,7.05991971,3199.9,3199.8,0.29943826]
[1720961888211,6.23301966,3199.9,3199.8,0.29943826]
[1720961890340,6.23296184,3199.9,3199.8,0.29943826]
[1720961891247,6.2329808,3199.9,3199.8,0.29943826]
[1720961892649,8.51978702,3199.9,3199.8,0.29943826]
[1720961892867,6.2329808,3199.9,3199.8,0.29943826]
[1720961893159,7.0849595,3199.9,3199.8,0.29943826]
[1720961893557,7.57560278,3199.9,3199.8,0.29943826]
[1720961893722,6.49278488,3199.9,3199.8,0.29943826]
[1720961893919,7.57560904,3199.9,3199.8,0.29943826]
[1720961894120,6.49278488,3199.9,3199.8,0.29943826]
[1720961894414,7.57562602,3199.9,3199.8,0.29943826]
[1720961894666,10.04052602,3199.9,3199.8,0.29943826]
[1720961896152,12.32783092,3199.9,3199.8,0.29943826]
[1720961896968,10.04060417,3199.9,3199.8,0.29943826]
[1720961897117,10.70141824,3199.9,3199.8,0.29943826]
[1720961897323,13.20148824,3199.9,3199.8,0.29943826]
[1720961897521,15.90409553,3199.9,3199.8,0.21286915]
[1720961898635,13.20148824,3199.9,3199.8,0.21286915]
[1720961899155,15.90367126,3199.9,3199.8,0.21286915]
[1720961899359,13.20148824,3199.9,3199.8,0.21286915]
[1720961900260,13.2015765,3199.9,3199.8,0.21286915]
[1720961903459,12.11856895,3199.9,3199.8,0.21286915]
[1720961903672,13.20157349,3199.9,3199.8,0.21286915]
[1720961904457,13.20157349,3199.9,3199.8,0.15171602]
[1720961905564,16.25164349,3199.9,3199.8,0.15171602]
[1720961906284,19.48318483,3199.9,3199.8,0.15171602]
[1720961906778,18.40018029,3199.9,3199.8,0.15171602]
[1720961906958,19.48324254,3199.9,3199.8,0.15171602]
[1720961907156,18.40018029,3199.9,3199.8,0.15171602]
[1720961907362,19.49460811,3199.9,3199.8,0.15171602]
[1720961908486,16.25170228,3199.9,3199.8,0.15171602]
[1720961909996,16.25170101,3199.9,3199.8,0.15171602]
[1720961910455,16.25168808,3199.9,3199.8,0.15171602]
[1720961911068,13.75161808,3199.9,3199.8,0.15171602]
[1720961911583,13.20161808,3199.9,3199.8,0.10832593]
[1720961913296,13.20161479,3199.9,3199.8,0.10832593]
[1720961916575,12.11856895,3199.9,3199.8,0.10832593]
[1720961916898,13.2016236,3199.9,3199.8,0.10832593]
[1720961917273,14.7016236,3199.9,3199.8,0.10832593]
[1720961918496,14.7016236,3199.9,3199.8,0.07744413]
[1720961919073,17.2016936,3199.9,3199.8,0.07744413]
[1720961919877,16.11863895,3199.9,3199.8,0.07744413]
[1720961920099,14.70161421,3199.9,3199.8,0.07744413]
[1720961920290,14.61863895,3199.9,3199.8,0.07744413]
[1720961920596,13.20164218,3199.9,3199.8,0.07744413]
[1720961923062,13.20158591,3199.9,3199.8,0.07744413]
[1720961925571,13.20158591,3199.9,3199.8,0.05541916]
[1720961925900,16.44658341,3199.9,3199.8,0.05541916]
[1720961926307,15.36356645,3199.9,3199.8,0.05541916]
[1720961926473,16.44656683,3199.9,3199.8,0.05541916]
[1720961928302,13.20156933,3199.9,3199.8,0.05541916]
[1720961929079,10.73666933,3199.9,3199.8,0.05541916]
[1720961929307,13.98212162,3199.9,3199.8,0.05541916]
[1720961929721,13.98211162,3199.9,3199.8,0.05541916]
[1720961932487,13.98211162,3199.9,3199.8,0.03968546]
[1720961933072,12.89912124,3199.9,3199.8,0.03968546]
[1720961933271,10.73665099,3199.9,3199.8,0.03968546]
[1720961933715,10.73664947,3199.9,3199.8,0.03968546]
[1720961936415,10.73664055,3199.9,3199.8,0.03968546]
[1720961936912,10.73664117,3199.9,3199.8,0.03968546]
[1720961939480,9.65366895,3199.9,3199.8,0.03968546]
[1720961939683,10.73667375,3199.9,3199.8,0.02843126]
[1720961941916,9.65366895,3199.9,3199.8,0.02843126]
[1720961942120,10.73668964,3199.9,3199.8,0.02843126]
[1720961945438,10.73670349,3199.9,3199.8,0.02843126]
[1720961945844,10.73669828,3199.9,3199.8,0.02843126]
[1720961946622,10.73669828,3199.9,3199.8,0.02037488]
[1720961948633,10.73670731,3199.9,3199.8,0.02037488]
[1720961948837,10.73671748,3199.9,3199.8,0.02037488]
[1720961951428,10.73671599,3199.9,3199.8,0.02037488]
[1720961951966,10.73670603,3199.9,3199.8,0.02037488]
[1720961953728,10.73670603,3199.9,3199.8,0.01460458]
[1720961955134,9.65366895,3199.9,3199.8,0.01460458]
[1720961955369,18.86042369,3199.9,3199.8,0.01460458]
[1720961955554,22.5265533,3199.9,3199.8,0.01460458]
[1720961955764,24.0265533,3199.9,3199.8,0.01460458]
[1720961956864,22.9434885,3199.9,3199.8,0.01460458]
[1720961958654,22.94368968,3199.9,3199.8,0.01460458]
[1720961959059,22.94366378,3199.9,3199.8,0.01460458]
[1720961960054,21.44366378,3199.9,3199.8,0.01460458]
[1720961960762,18.94359378,3199.9,3199.8,0.01046977]
[1720961960949,15.57896895,3199.9,3199.8,0.01046977]
[1720961963173,6.30162025,3199.9,3199.8,0.01046977]
[1720961965175,8.80169025,3199.9,3199.8,0.01046977]
[1720961966567,9.35169025,3199.9,3199.8,0.01046977]
[1720961967704,9.35169025,3199.9,3199.8,0.00750711]
[1720961968169,12.35169025,3199.9,3199.8,0.00750711]
[1720961968471,13.97438928,3199.9,3199.8,0.00750711]
[1720961969235,17.97445928,3199.9,3199.8,0.00750711]
[1720961969747,19.17166891,3199.9,3199.8,0.00750711]
[1720961970272,17.97445928,3199.9,3199.8,0.00750711]
[1720961972706,16.47445928,3199.9,3199.8,0.00750711]
[1720961973574,19.17124327,3199.9,3199.8,0.00750711]
[1720961973778,15.17117327,3199.9,3199.8,0.00750711]
[1720961973939,16.47445928,3199.9,3199.8,0.00750711]
[1720961974140,17.67125053,3199.9,3199.8,0.00750711]
[1720961974382,19.83756517,3199.9,3199.8,0.00750711]
[1720961974781,19.17125053,3199.9,3199.8,0.00750711]
[1720961974953,2.50044,3199.5,3199.0,0.0423358]
[1720961975161,3.25276269,3199.2,3199.0,0.0423358]
[1720961975361,0.81083697,3199.1,3199.0,0.0423358]
[1720961975749,5.81223697,3199.1,3199.0,0.0423358]
[1720961987574,3.31153697,3199.1,3199.0,0.0423358]
[1720961987774,3.31153697,3199.1,3199.0,2.3405358]
[1720961988200,6.02000215,3199.1,3199.0,2.3405358]
[1720961989784,3.51930215,3199.1,3199.0,2.3405358]
[1720961989985,0.1500229,3199.1,3199.0,2.3405358]
[1720961990225,0.80402452,3199.1,3199.0,2.3405358]
[1720961990434,0.1500229,3199.1,3199.0,2.3405358]
[1720961992088,0.80414393,3199.1,3199.0,2.3405358]
[1720961992503,3.51327585,3199.1,3199.0,2.3405358]
[1720961993116,3.30484393,3199.1,3199.0,2.3405358]
[1720961993719,6.01418579,3199.1,3199.0,2.3405358]
[1720961993919,3.30484393,3199.1,3199.0,2.3405358]
[1720961995118,6.01422986,3199.1,3199.0,2.3405358]
[1720961995295,3.30484393,3199.1,3199.0,2.3405358]
[1720961995988,6.01378943,3199.1,3199.0,2.3405358]
[1720961996614,0.80414393,3199.1,3199.0,2.3405358]
[1720961996823,3.51308943,3199.1,3199.0,2.3405358]
[1720961997759,0.80414393,3199.1,3199.0,2.3405358]
[1720961997924,3.51304068,3199.1,3199.0,2.3405358]
[1720961998914,0.80414393,3199.1,3199.0,2.3405358]
[1720962000215,3.51304068,3199.1,3199.0,2.3405358]
[1720962000385,0.1500229,3199.1,3199.0,2.3405358]
[1720962000585,0.80411857,3199.1,3199.0,2.3405358]
[1720962001017,0.1500229,3199.1,3199.0,2.3405358]
[1720962002763,0.80404889,3199.1,3199.0,2.3405358]
[1720962003140,3.51325803,3199.1,3199.0,2.3405358]
[1720962003435,6.01395803,3199.1,3199.0,2.3405358]
[1720962003641,6.01358802,3199.1,3199.0,2.3405358]
[1720962003798,6.01358802,3199.1,3199.0,2.3155358]
[1720962004007,3.98784931,3199.1,3199.0,2.3155358]
[1720962004209,6.69665631,3199.1,3199.0,0.0423358]
[1720962004531,3.30474889,3199.1,3199.0,0.0423358]
[1720962004741,0.1500229,3199.1,3199.0,0.0423358]
[1720962006948,0.1500229,3199.1,3199.0,2.3576358]
[1720962008047,0.80407325,3199.1,3199.0,0.0423358]
[1720962008245,3.51289938,3199.1,3199.0,0.0423358]
[1720962008417,6.01359938,3199.1,3199.0,0.0423358]
[1720962009025,3.30477325,3199.1,3199.0,0.0423358]
[1720962010137,6.01215966,3199.1,3199.0,0.0423358]
[1720962010652,3.30477325,3199.1,3199.0,0.0423358]
[1720962011040,6.01215966,3199.1,3199.0,0.0423358]
[1720962011656,6.01299073,3199.1,3199.0,0.0423358]
[1720962013433,3.30477325,3199.1,3199.0,0.0423358]
[1720962013637,6.01384068,3199.1,3199.0,0.0423358]
[1720962014944,3.51314068,3199.1,3199.0,0.0423358]
[1720962015335,0.80407325,3199.1,3199.0,0.0423358]
[1720962015633,0.64073374,3199.1,3199.0,0.0423358]
[1720962016463,0.64073374,3199.1,3199.0,2.3576358]
[1720962016693,0.64073374,3199.1,3199.0,2.59339938]
[1720962016872,2.78372014,3199.1,3199.0,2.59339938]
[1720962017075,2.93374304,3199.1,3199.0,2.59339938]
[1720962017375,2.93377848,3199.1,3199.0,2.59339938]
[1720962017584,0.64073374,3199.1,3199.0,2.59339938]
[1720962018253,2.45566171,3199.1,3199.0,2.59339938]
[1720962018590,2.60568312,3199.1,3199.0,2.59339938]
[1720962018784,0.64073374,3199.1,3199.0,5.09417938]
[1720962018978,2.45548155,3199.1,3199.0,5.09417938]
[1720962019177,2.60479921,3199.1,3199.0,5.09417938]
[1720962020093,2.60453027,3199.1,3199.0,5.09417938]
[1720962020281,0.64073374,3199.1,3199.0,5.09417938]
[1720962020468,2.60453027,3199.1,3199.0,4.8584158]
[1720962022185,0.64073374,3199.1,3199.0,4.8584158]
[1720962024981,0.96733821,3199.1,3199.0,4.8584158]
[1720962026297,0.81731531,3199.1,3199.0,4.8584158]
[1720962027302,0.76837869,3199.1,3199.0,4.8584158]
[1720962027472,0.76837869,3199.1,3199.0,5.59434838]
[1720962030507,0.76837869,3199.1,3199.0,4.84529702]
[1720962031002,0.90493522,3199.1,3199.0,4.84529702]
[1720962031299,0.76837869,3199.1,3199.0,4.84529702]
[1720962043625,0.76837869,3199.1,3199.0,7.40858752]
[1720962043809,0.76837869,3199.1,3199.0,7.34607702]
[1720962043994,0.76837869,3199.1,3199.0,8.08068472]
[1720962046829,2.40321567,3199.1,3199.0,8.08068472]
[1720962047032,0.76837869,3199.1,3199.0,8.08068472]
[1720962047201,0.76837869,3199.1,3199.0,10.51068472]
[1720962047202,2.07627427,3199.1,3199.0,10.51068472]
[1720962047526,0.76837869,3199.1,3199.0,10.51068472]
[1720962047697,2.07619941,3199.1,3199.0,10.51068472]
[1720962049404,0.76837869,3199.1,3199.0,10.51068472]
[1720962049612,1.74921628,3199.1,3199.0,10.51068472]
[1720962049828,0.76837869,3199.1,3199.0,10.51068472]
[1720962050024,2.07619941,3199.1,3199.0,10.51068472]
[1720962050229,0.76837869,3199.1,3199.0,10.51068472]
[1720962050599,2.07619941,3199.1,3199.0,10.51068472]
[1720962051206,0.76837869,3199.1,3199.0,10.51068472]
[1720962051494,2.07619941,3199.1,3199.0,10.51068472]
[1720962052289,0.76837869,3199.1,3199.0,10.51068472]
[1720962053497,0.76837869,3199.1,3199.0,8.63068472]
[1720962053838,2.07619941,3199.1,3199.0,10.51068472]
[1720962056042,2.07602956,3199.1,3199.0,10.51068472]
[1720962056614,2.07609399,3199.1,3199.0,10.51068472]
[1720962057538,0.76837869,3199.1,3199.0,10.51068472]
[1720962057735,2.07645122,3199.1,3199.0,10.51068472]
[1720962058309,2.07645122,3199.1,3199.0,8.19538472]
[1720962058561,0.76837869,3199.1,3199.0,0.02921702]
[1720962059859,0.76837869,3199.1,3199.0,2.52999702]
[1720962061450,0.91113541,3199.1,3199.0,2.52999702]
[1720962061810,0.76837869,3199.1,3199.0,2.52999702]
[1720962063555,0.91113959,3199.1,3199.0,2.52999702]
[1720962063718,0.91115828,3199.1,3199.0,2.52999702]
[1720962064056,0.76837869,3199.1,3199.0,2.52999702]
[1720962064414,0.91114531,3199.1,3199.0,2.52999702]
[1720962064640,0.76837869,3199.1,3199.0,2.52999702]
[1720962065011,0.91114535,3199.1,3199.0,2.52999702]
[1720962065525,2.87509851,3199.1,3199.0,2.52999702]
[1720962066222,0.91114535,3199.1,3199.0,2.52999702]
[1720962068976,2.87438139,3199.1,3199.0,2.52999702]
[1720962069128,0.91114535,3199.1,3199.0,2.52999702]
[1720962069859,0.76837869,3199.1,3199.0,2.52999702]
[1720962072043,0.91111861,3199.1,3199.0,2.52999702]
[1720962072772,2.87443879,3199.1,3199.0,2.52999702]
[1720962073175,2.87443879,3199.1,3199.0,0.02921702]
[1720962074870,2.87448025,3199.1,3199.0,0.02921702]
[1720962077354,0.91111861,3199.1,3199.0,0.02921702]
[1720962084559,2.87498671,3199.1,3199.0,0.02921702]
[1720962084760,2.874893,3199.1,3199.0,0.02921702]
[1720962085404,2.874893,3199.1,3199.0,4.55623911]
[1720962085546,0.76837869,3199.1,3199.0,7.60701911]
[1720962085750,0.76837869,3199.1,3199.0,10.10779911]
[1720962086244,2.40502379,3199.1,3199.0,10.10779911]
[1720962086875,0.76837869,3199.1,3199.0,10.10779911]
[1720962087046,2.07774416,3199.1,3199.0,13.10779911]
[1720962087241,0.76837869,3199.1,3199.0,13.10779911]
[1720962087444,1.30936547,3199.2,3199.1,6.8814]
[1720962087753,1.96377439,3199.6,3199.1,6.8814]
[1720962087754,1.63670707,3199.6,3199.5,4.2477]
[1720962087956,1.63670707,3199.7,3199.6,5.00062]
[1720962088281,1.63670707,3199.8,3199.7,5.00046]
[1720962090867,0.32661714,3199.9,3199.8,2.50015]
[1720962091374,1.96168225,3199.9,3199.8,2.50015]
[1720962091580,1.96168225,3199.9,3199.8,3.000188]
[1720962092314,1.96168225,3199.9,3199.8,5.500338]
[1720962092870,0.32661714,3199.9,3199.8,5.500338]
[1720962093071,0.32661714,3199.9,3199.8,6.050338]
[1720962093308,1.30743416,3199.9,3199.8,6.1128318]
[1720962093616,0.6539038,3199.9,3199.8,15.798188]
[1720962093904,0.98081702,3200.0,3199.9,6.88014]
[1720962094111,2.45186836,3200.3,3200.2,4.99968]
[1720962094296,2.45186836,3200.3,3200.0,2.49993]
[1720962094609,1.63419359,3200.2,3200.0,5.49993]
[1720962095291,2.45136834,3200.3,3200.0,4.88]
[1720962095513,0.81717475,3200.3,3200.2,2.49984]
[1720962095897,2.45136834,3200.3,3200.2,2.49984]
[1720962096271,0.81717475,3200.3,3200.2,2.49984]
[1720962097106,2.12397042,3200.3,3200.2,5.799663]
[1720962097307,0.81717475,3200.3,3200.2,5.799663]
[1720962097475,1.79697809,3200.3,3200.2,5.799663]
[1720962097670,0.81717475,3200.3,3200.2,5.799663]
[1720962097874,1.79697943,3200.3,3200.2,5.799663]
[1720962098077,1.47037835,3200.3,3200.2,5.799663]
[1720962098279,0.97980468,3200.4,3200.3,2.49976]
[1720962098598,0.97980468,3200.4,3200.3,3.3164883]
[1720962099689,0.97980468,3200.4,3200.3,5.8162483]
[1720962100420,0.97980468,3200.5,3200.4,2.49968]
[1720962101017,0.97980468,3200.6,3200.5,2.4996]
[1720962101494,1.47028106,3200.7,3200.6,4.99906]
[1720962101687,1.14319673,3200.7,3200.6,4.99906]